fUST/lending_fUST_20251115
["ID","MTS","AMOUNT","RATE_DAILY","PERIOD"]
[393970062,1763143848075,500.0,0.00023442,2]
[393970067,1763143848116,214.32444611,0.00023442,2]
[393970072,1763143848154,500.0,0.00023442,2]
[393970076,1763143848187,500.0,0.00023442,2]
[393970081,1763143848220,500.0,0.00023442,2]
[393970085,1763143848253,500.0,0.00023442,2]
[393970090,1763143848291,500.0,0.00023442,2]
[393970094,1763143848325,500.0,0.00023442,2]
[393970099,1763143848359,500.0,0.00023442,2]
[393970103,1763143848392,500.0,0.00023442,2]
[393970108,1763143848426,500.0,0.00023442,2]
[393970113,1763143848460,500.0,0.00023442,2]
[393970118,1763143848505,500.0,0.00023442,2]
[393970123,1763143848539,477.56281775,0.00023442,2]
[393970490,1763143859042,866.03,0.00023489,10]
[393970491,1763143868114,5000.0,0.0002626,6]
[393970492,1763143871435,721.69,0.00023437,10]
[393970493,1763143884378,601.41,0.00023432,10]
[393970494,1763143890770,5000.0,0.0002626,6]
[393970495,1763143895054,501.18,0.00023432,10]
[393970496,1763143908076,417.65,0.00023432,10]
[393970497,1763143911032,194.47,0.00023434,3]
[393970498,1763143912978,5000.0,0.0002626,6]
[393970499,1763143915376,1880.47904366,0.00023342,2]
[393970500,1763143921200,348.04,0.00023432,10]
[393970501,1763143921713,583.41,0.00023434,3]
[393970502,1763143934240,290.03,0.00023432,10]
[393970503,1763143935401,150.0,0.00022366,2]
[393970504,1763143935671,155.0,0.000235,7]
[393970505,1763143935969,155.0,0.000254,7]
[393970506,1763143936100,5000.0,0.0002626,6]
[393970507,1763143947169,241.69,0.00023432,10]
[393970508,1763143948253,-367.0,0.00033444,120]
[393970509,1763143958381,3510.07076909,0.0002626,6]
[393970510,1763143960495,1026.65,0.00023432,10]
[393970511,1763143973109,855.54,0.00023432,10]
[393970512,1763143974887,-0.57449082,0.00033444,120]
[393970513,1763143974916,-155.0,0.00035,120]
[393970514,1763143974948,-0.57449082,0.00035,120]
[393970515,1763143975149,-127.57449082,0.00035,120]
[393970516,1763143975179,-80.85101836,0.00035,120]
[393970517,1763143975305,-160.197304,0.0003516,120]
[393970518,1763143985648,712.95,0.00023432,10]
[393970519,1763143999243,594.13,0.00023432,10]
[393970520,1763144000369,150.0,0.00022382,2]
[393970521,1763144010098,150.0,0.00023413,2]
[393970522,1763144012056,495.11,0.00023432,10]
[393970523,1763144024750,412.59,0.00023432,10]
[393970524,1763144028838,151.0,0.00024658,7]
[393970525,1763144033186,-313.1111365,0.0003186,71]
[393970526,1763144033268,-313.1111365,0.00032406,94]
[393970527,1763144033414,-313.1111365,0.00031679,63]
[393970528,1763144033502,-340.5101143,0.000332,117]
[393970529,1763144033519,-313.1111365,0.00032224,86]
[393970530,1763144033607,-152.02745368,0.00032769,110]
[393970531,1763144033633,-313.1111365,0.00032588,102]
[393970532,1763144033714,-131.72993048,0.000332,117]
[393970533,1763144033724,-340.5101143,0.000332,117]
[393970534,1763144033748,-152.02745368,0.00032769,110]
[393970535,1763144033770,-4.52811456,0.00032769,110]
[393970536,1763144033888,-313.1111365,0.00032042,79]
[393970537,1763144038240,343.82,0.00023432,10]
[393970538,1763144046657,151.0,0.00024658,7]
[393970539,1763144047053,151.0,0.00024658,7]
[393970540,1763144047954,213.37455,0.00024658,7]
[393970541,1763144048600,151.0,0.00023441,7]
[393970542,1763144051274,286.52,0.00023432,10]
[393970543,1763144064567,150.0,0.00022384,2]
[393970544,1763144064804,238.77,0.00023432,10]
[393970545,1763144067741,151.0,0.00024658,7]
[393970546,1763144069012,151.0,0.00024658,7]
[393970547,1763144069722,155.0,0.000235,7]
[393970548,1763144070189,151.0,0.00024658,7]
[393970549,1763144074893,151.0,0.00024658,7]
[393970550,1763144075250,151.0,0.00024658,7]
[393970551,1763144075585,151.0,0.00024658,7]
[393970552,1763144076446,151.0,0.00024658,7]
[393970553,1763144076515,151.0,0.00024658,7]
[393970554,1763144076554,198.97,0.00023432,10]
[393970555,1763144076733,151.0,0.00024658,7]
[393970556,1763144077124,292.765076,0.00024658,7]
[393970557,1763144089607,165.81,0.00023432,10]
[393970558,1763144101738,1645.41916322,0.00023341,2]
[393970559,1763144103093,829.08,0.00023431,10]
[393970560,1763144116104,152.677526,0.00024658,7]
[393970561,1763144118994,151.0,0.00024658,7]
[393970562,1763144121575,151.0,0.00024658,7]
[393970563,1763144121914,151.0,0.00024658,7]
[393970564,1763144128396,151.0,0.00024658,7]
[393970565,1763144129756,151.0,0.00024658,7]
[393970566,1763144138726,151.0,0.00024658,7]
[393970567,1763144142804,372.81819969,0.00022405,2]
[393970568,1763144146837,151.0,0.00024658,7]
[393970569,1763144147265,154.026866,0.00024658,7]
[393970570,1763144175487,151.0,0.00024658,7]
[393970571,1763144194408,151.0,0.00024658,7]
[393970572,1763144204119,155.01,0.000235,7]
[393970573,1763144232431,151.0,0.00024658,7]
[393970574,1763144244740,151.0,0.00024658,7]
[393970575,1763144245134,151.0,0.00024658,7]
[393970576,1763144245673,157.142272,0.00024658,7]
[393970577,1763144255840,151.0,0.00024658,7]
[393970578,1763144255873,151.0,0.00024658,7]
[393970579,1763144264235,151.0,0.00024658,7]
[393970580,1763144270935,151.0,0.00024658,7]
[393970581,1763144271283,151.0,0.00024658,7]
[393970582,1763144274642,151.0,0.00024658,7]
[393970583,1763144274929,151.0,0.00024658,7]
[393970584,1763144275299,151.0,0.00024658,7]
[393970585,1763144275608,281.531448,0.00024658,7]
[393970586,1763144276726,151.0,0.00024658,7]
[393970587,1763144277055,151.0,0.00024658,7]
[393970588,1763144277343,188.304363,0.00024658,7]
[393970589,1763144288528,151.0,0.00024658,7]
[393970590,1763144294368,1439.7417678,0.00023334,2]
[393970591,1763144301647,151.0,0.00024658,7]
[393970592,1763144302016,151.0,0.00024658,7]
[393970593,1763144302350,151.0,0.00024658,7]
[393970594,1763144302761,258.960804,0.00024658,7]
[393970595,1763144308010,151.0,0.00023434,7]
[393970596,1763144308597,151.0,0.00023434,7]
[393970597,1763144309023,151.0,0.00024658,7]
[393970598,1763144309194,151.0,0.00023434,7]
[393970599,1763144309584,151.0,0.00023434,7]
[393970600,1763144310037,151.0,0.00023434,7]
[393970601,1763144310364,151.0,0.00023434,7]
[393970602,1763144310959,187.122603,0.00023434,7]
[393970603,1763144325691,151.0,0.00024658,7]
[393970604,1763144337849,155.01,0.000235,7]
[393970605,1763144346748,151.0,0.00024658,7]
[393970606,1763144346936,151.0,0.00024658,7]
[393970607,1763144347321,151.0,0.00024658,7]
[393970608,1763144347494,151.0,0.00024658,7]
[393970609,1763144347833,151.0,0.00024658,7]
[393970610,1763144348505,151.0,0.00024658,7]
[393970611,1763144348955,151.0,0.00024658,7]
[393970612,1763144349247,151.0,0.00024658,7]
[393970613,1763144349649,151.0,0.00024658,7]
[393970614,1763144350029,151.0,0.00024658,7]
[393970615,1763144350348,151.0,0.00024658,7]
[393970616,1763144350710,187.12365,0.00024658,7]
[393970617,1763144359852,151.0,0.00023433,7]
[393970618,1763144364104,151.0,0.00024658,7]
[393970619,1763144364273,151.0,0.00024658,7]
[393970620,1763144364608,151.0,0.00024658,7]
[393970621,1763144367742,151.0,0.00024658,7]
[393970622,1763144368051,151.0,0.00024658,7]
[393970623,1763144368423,151.0,0.00023433,7]
[393970624,1763144387152,330.58221863,0.00023316,10]
[393970625,1763144426149,-472.42550918,0.00030467,30]
[393970626,1763144431398,151.0,0.00024658,7]
[393970627,1763144431702,151.0,0.00024658,7]
[393970628,1763144434759,151.0,0.00023433,7]
[393970629,1763144435665,151.0,0.00023433,7]
[393970630,1763144437878,204.91172495,0.00022405,2]
[393970631,1763144439664,819.64689978,0.00022405,2]
[393970632,1763144440661,-286.8888635,0.00031,60]
[393970633,1763144440724,-313.1111365,0.00030951,32]
[393970634,1763144441527,1842.36131898,0.00022405,2]
[393970635,1763144470800,155.01,0.000235,7]
[393970636,1763144477989,-63.1111365,0.00031,60]
[393970637,1763144478035,-186.887727,0.00031315,48]
[393970638,1763144482523,1259.77404679,0.00023332,2]
[393970639,1763144500930,-304.05490737,0.00031497,56]
[393970640,1763144501180,-9.05018526,0.00031497,56]
[393970641,1763144503631,436.222,0.00025,8]
[393970642,1763144516912,388.94,0.00023422,3]
[393970643,1763144527289,1648.71565228,0.00022984,2]
[393970644,1763144527350,3506.60359741,0.00022827,2]
[393970645,1763144527625,1648.71565229,0.00023239,2]
[393970646,1763144527670,3506.60359741,0.0002324,2]
[393970647,1763144531310,151.0,0.00024658,7]
[393970648,1763144531627,151.0,0.00024658,7]
[393970649,1763144531941,151.0,0.00024658,7]
[393970650,1763144532581,-304.06,0.00031497,56]
[393970651,1763144550515,151.0,0.00023432,7]
[393970652,1763144550836,151.0,0.00023432,7]
[393970653,1763144551136,151.0,0.00023432,7]
[393970654,1763144551464,151.0,0.00023432,7]
[393970655,1763144552512,151.0,0.00023432,7]
[393970656,1763144555581,151.0,0.00024658,7]
[393970657,1763144555956,151.0,0.00024658,7]
[393970658,1763144561251,254.619047,0.00023432,7]
[393970659,1763144582071,200.01380204,0.00022405,2]
[393970660,1763144584312,800.05520817,0.00022405,2]
[393970661,1763144586604,1800.12421838,0.00022405,2]
[393970662,1763144588683,3200.22083267,0.00022405,2]
[393970663,1763144591432,4995.34470599,0.00022405,2]
[393970664,1763144595912,151.0,0.00024658,7]
[393970665,1763144596273,151.0,0.00024658,7]
[393970666,1763144607583,151.0,0.00024658,7]
[393970667,1763144650342,151.0,0.00024658,7]
[393970668,1763144676183,151.0,0.00024658,7]
[393970669,1763144693834,1102.30229095,0.00023332,2]
[393970673,1763144704724,151.0,0.00023413,2]
[393970674,1763144711487,155.039331,0.00024658,7]
[393970675,1763144724459,156.903043,0.00024658,7]
[393970678,1763144770069,151.0,0.00024658,7]
[393970684,1763144854568,151.0,0.00024658,7]
[393970690,1763144889488,964.51450459,0.00023329,2]
[393970701,1763144914729,1650.40834043,0.00026,30]
[393970705,1763144920839,524.76277114,0.0001,2]
[393970706,1763144921601,207.0,0.0002,10]
[393970709,1763144982222,-126.2234095,0.00031315,48]
[393970710,1763144982251,-0.00095124,0.00031497,56]
[393970711,1763144982333,-313.1111365,0.00031133,40]
[393970712,1763144982359,-324.0,0.00031562,47]
[393970713,1763144982602,-127.57449082,0.00030467,30]
[393970714,1763145018350,300.0,0.00023894,20]
[393970715,1763145018815,300.0,0.00023894,20]
[393970716,1763145019275,300.0,0.00023894,20]
[393970717,1763145019736,300.0,0.00023894,20]
[393970718,1763145020196,300.0,0.00023894,20]
[393970719,1763145020657,300.0,0.00023894,20]
[393970720,1763145021255,300.0,0.00023894,20]
[393970721,1763145021585,300.0,0.00023894,20]
[393970722,1763145021610,162.73168922,0.00031315,30]
[393970723,1763145022058,300.0,0.00023894,20]
[393970724,1763145022526,300.0,0.00023894,20]
[393970725,1763145023017,300.0,0.00023894,20]
[393970726,1763145023499,300.0,0.00023894,20]
[393970727,1763145023970,300.0,0.00023894,20]
[393970728,1763145024433,300.0,0.00023894,20]
[393970729,1763145024896,300.0,0.00023894,20]
[393970730,1763145026392,600.0,0.00023895,20]
[393970731,1763145026843,279.14285064,0.00026285,30]
[393970843,1763145040358,-500.0,0.00023425,2]
[393970844,1763145040367,-500.0,0.00023425,2]
[393970845,1763145040377,-500.0,0.00023425,2]
[393970846,1763145040385,-500.0,0.00023425,2]
[393970847,1763145040394,-537.4958863,0.00023425,2]
[393970848,1763145040403,-500.0,0.00023425,2]
[393970849,1763145040411,-500.0,0.00023425,2]
[393970850,1763145040420,-537.4958863,0.00023425,2]
[393970851,1763145040429,-500.0,0.00023425,2]
[393970852,1763145040438,-500.0,0.00023425,2]
[393970854,1763145040446,-500.0,0.00023425,2]
[393970856,1763145040455,-500.0,0.00023425,2]
[393970858,1763145040464,-500.0,0.00023425,2]
[393970859,1763145040473,-537.4958863,0.00023425,2]
[393970860,1763145040486,-2983.61462853,0.00023425,2]
[393970861,1763145040495,-500.0,0.00023425,2]
[393970862,1763145040504,-500.0,0.00023425,2]
[393970863,1763145040512,-500.0,0.00023425,2]
[393970864,1763145040522,-500.0,0.00023425,2]
[393970865,1763145040531,-537.4958863,0.00023425,2]
[393970866,1763145040539,-2983.61462853,0.00023425,2]
[393970867,1763145040549,-500.0,0.00023425,2]
[393970868,1763145040561,-500.0,0.00023425,2]
[393970869,1763145040570,-500.0,0.00023425,2]
[393970870,1763145040578,-537.4958863,0.00023425,2]
[393970871,1763145040587,-500.0,0.00023425,2]
[393970872,1763145040596,-2983.61462853,0.00023425,2]
[393970873,1763145040605,-500.0,0.00023425,2]
[393970874,1763145040613,-500.0,0.00023425,2]
[393970875,1763145040622,-537.4958863,0.00023425,2]
[393970876,1763145040631,-500.0,0.00023425,2]
[393970877,1763145040640,-500.0,0.00023425,2]
[393970878,1763145040649,-2983.61462853,0.00023425,2]
[393970879,1763145040658,-500.0,0.00023425,2]
[393970880,1763145040667,-500.0,0.00023425,2]
[393970881,1763145040675,-500.0,0.00023425,2]
[393970882,1763145040684,-537.4958863,0.00023425,2]
[393970883,1763145040693,-500.0,0.00023425,2]
[393970884,1763145040701,-500.0,0.00023425,2]
[393970885,1763145040710,-2983.61462853,0.00023425,2]
[393970886,1763145040719,-500.0,0.00023425,2]
[393970887,1763145040727,-500.0,0.00023425,2]
[393970888,1763145040736,-500.0,0.00023425,2]
[393970889,1763145040746,-537.4958863,0.00023425,2]
[393970890,1763145040754,-500.0,0.00023425,2]
[393970891,1763145040763,-500.0,0.00023425,2]
[393970892,1763145040772,-2983.61462853,0.00023425,2]
[393970893,1763145040781,-203.50493754,0.00023425,2]
[393970894,1763145040789,-500.0,0.00023425,2]
[393970895,1763145040801,-500.0,0.00023425,2]
[393970896,1763145040810,-537.4958863,0.00023425,2]
[393970897,1763145040818,-500.0,0.00023425,2]
[393970898,1763145040827,-2983.61462853,0.00023425,2]
[393970899,1763145040836,-500.0,0.00023425,2]
[393970900,1763145040845,-500.0,0.00023425,2]
[393970901,1763145040968,-537.4958863,0.00023425,2]
[393970902,1763145040978,-500.0,0.00023425,2]
[393970903,1763145040987,-2056.73310135,0.00023425,2]
[393970917,1763145043715,-926.88152718,0.00023425,2]
[393970918,1763145043726,-500.0,0.00023425,2]
[393970919,1763145043735,-500.0,0.00023425,2]
[393970920,1763145043745,-500.0,0.00023425,2]
[393970921,1763145043755,-537.4958863,0.00023425,2]
[393970922,1763145043764,-500.0,0.00023425,2]
[393970923,1763145043774,-500.0,0.00023425,2]
[393970924,1763145043783,-400.62258652,0.00023425,2]
[393970925,1763145043794,-2582.99204201,0.00023425,2]
[393970926,1763145043806,-500.0,0.00023425,2]
[393970927,1763145043816,-12.00795799,0.00023425,2]
[393970934,1763145052148,449.62,0.00023415,3]
[393970935,1763145063666,300.0,0.00023892,20]
[393970936,1763145064137,300.0,0.00023892,20]
[393970937,1763145064593,300.0,0.00023892,20]
[393970938,1763145065046,300.0,0.00023892,20]
[393970939,1763145065813,300.0,0.00023892,20]
[393970940,1763145066008,300.0,0.00023892,20]
[393970941,1763145066463,300.0,0.00023892,20]
[393970942,1763145066927,300.0,0.00023892,20]
[393970943,1763145067389,300.0,0.00023892,20]
[393970944,1763145067852,300.0,0.00023892,20]
[393970945,1763145068391,300.0,0.00023892,20]
[393970946,1763145069379,300.0,0.00023892,20]
[393970947,1763145069852,300.0,0.00023892,20]
[393970948,1763145070309,300.0,0.00023892,20]
[393970949,1763145070758,300.0,0.00023892,20]
[393970950,1763145071508,600.0,0.00023892,20]
[393970951,1763145073975,300.0,0.00032,31]
[393970952,1763145089914,211.2656,0.00024658,7]
[393970953,1763145090366,211.2656,0.00024658,7]
[393970954,1763145090757,211.2656,0.00024658,7]
[393970955,1763145091251,211.2656,0.00024658,7]
[393970956,1763145091630,211.2656,0.00024658,7]
[393970957,1763145091984,211.2656,0.00024658,7]
[393970958,1763145092401,211.2656,0.00024658,7]
[393970959,1763145092795,211.2656,0.00024658,7]
[393970960,1763145092886,2010.1,0.000235,7]
[393970961,1763145093097,211.2656,0.00024658,7]
[393970962,1763145093184,2010.1,0.000257,7]
[393970963,1763145093629,211.2656,0.00024658,7]
[393970964,1763145094020,211.2656,0.00024658,7]
[393970965,1763145094402,211.2656,0.00024658,7]
[393970966,1763145094768,843.95019156,0.00023325,2]
[393970967,1763145095143,211.2656,0.00024658,7]
[393970968,1763145095438,211.2656,0.00024658,7]
[393970969,1763145095792,211.2656,0.00024658,7]
[393970970,1763145096145,211.2656,0.00024658,7]
[393970971,1763145096430,211.2656,0.00024658,7]
[393970972,1763145096815,211.2656,0.00024658,7]
[393970973,1763145097085,211.2656,0.00024658,7]
[393970974,1763145097406,211.265596,0.00024658,7]
[393970975,1763145103628,348.978,0.00024947,8]
[393970976,1763145107954,600.0,0.00023892,20]
[393970977,1763145145077,600.0,0.00023892,20]
[393970978,1763145146456,151.0,0.000248,8]
[393970979,1763145146859,151.0,0.000246,7]
[393970980,1763145181037,600.0,0.00023891,20]
[393970981,1763145195321,218.07051842,0.00023689,4]
[393970982,1763145217783,600.0,0.00023891,20]
[393970983,1763145228233,1786.76,0.000235,7]
[393970984,1763145228515,1786.76,0.000258,7]
[393970985,1763145253990,600.0,0.00023891,20]
[393970986,1763145278768,91.643069,0.00031133,40]
[393970987,1763145278796,221.4680675,0.00031133,40]
[393970988,1763145290315,600.0,0.0002389,20]
[393970989,1763145326547,600.0,0.0002389,20]
[393970990,1763145345406,632.96264367,0.00023323,2]
[393970991,1763145362409,600.0,0.0002389,20]
[393970992,1763145363249,1389.7,0.000235,7]
[393970993,1763145363551,1389.7,0.000257,7]
[393970994,1763145397557,600.0,0.00023889,20]
[393970995,1763145433635,600.0,0.00023889,20]
[393970996,1763145468163,600.0,0.00023889,20]
[393970997,1763145473519,152.0,0.00023413,2]
[393970998,1763145498215,972.79,0.000235,7]
[393970999,1763145498515,972.79,0.000257,7]
[393971000,1763145503388,600.0,0.00023888,20]
[393971001,1763145521427,168.0,0.00026166,7]
[393971002,1763145537812,600.0,0.00023886,20]
[393971003,1763145567922,659.33608713,0.00023319,2]
[393971004,1763145571864,600.0,0.00023886,20]
[393971005,1763145605897,600.0,0.00023886,20]
[393971006,1763145634420,778.23,0.000235,7]
[393971007,1763145634661,778.23,0.000256,7]
[393971008,1763145639644,600.0,0.00023885,20]
[393971009,1763145674072,600.0,0.00023885,20]
[393971010,1763145707372,600.0,0.00023885,20]
[393971011,1763145740532,600.0,0.00023885,20]
[393971012,1763145769063,622.59,0.000235,7]
[393971013,1763145769361,622.59,0.000258,7]
[393971014,1763145773319,600.0,0.00023884,20]
[393971015,1763145788729,576.91907623,0.00023317,2]
[393971016,1763145794640,685.386008,0.00013699,2]
[393971017,1763145794808,300.03787586,0.0002227,2]
[393971018,1763145794868,685.386008,0.00020187,2]
[393971020,1763145806176,600.0,0.00023884,20]
[393971021,1763145838199,600.0,0.00023884,20]
[393971022,1763145870532,600.0,0.00023884,20]
[393971023,1763145902727,600.0,0.00023883,20]
[393971024,1763145905150,498.07,0.000235,7]
[393971025,1763145905436,498.07,0.000256,7]
[393971026,1763145933974,600.0,0.00023883,20]
[393971027,1763145952552,207.796351,0.00022418,2]
[393971028,1763145953975,456.52016464,0.0002227,2]
[393971029,1763145965505,600.0,0.00023883,20]
[393971030,1763145997087,503.0,0.00023882,20]
[393971033,1763145998107,152.09159993,0.0002,2]
[393971034,1763146004217,504.80419171,0.00023316,2]
[393971035,1763146041525,398.46,0.000235,7]
[393971036,1763146041834,398.46,0.000256,7]
[393971037,1763146142714,300.0,0.00023413,2]
[393971038,1763146176798,354.18,0.000235,7]
[393971039,1763146177102,354.18,0.000257,7]
[393971040,1763146201395,300.0,0.00023413,2]
[393971041,1763146202586,300.0,0.00023413,2]
[393971042,1763146205546,1200.0,0.00023413,2]
[393971043,1763146218981,441.70366772,0.00023314,2]
[393971066,1763146232398,500.0,0.00023413,2]
[393971072,1763146232444,510.47070811,0.00023413,2]
[393971077,1763146232491,256.85380029,0.00023413,2]
[393971080,1763146232513,-189.27832639,0.00023414,2]
[393971082,1763146232522,-576.2378647,0.00023414,2]
[393971084,1763146232531,-364.6431862,0.00023414,2]
[393971086,1763146232540,-500.0,0.00023414,2]
[393971088,1763146232550,-500.0,0.00023414,2]
[393971090,1763146232559,-493.0537093,0.00023414,2]
[393971097,1763146232617,-6.9462907,0.00023414,2]
[393971100,1763146232626,-500.0,0.00023414,2]
[393971102,1763146232635,-500.0,0.00023414,2]
[393971104,1763146232644,-500.0,0.00023414,2]
[393971106,1763146232653,-500.0,0.00023414,2]
[393971108,1763146232662,-54.4340723,0.00023414,2]
[393971171,1763146238408,-500.0,0.00023414,2]
[393971172,1763146239805,500.0,0.00023413,2]
[393971173,1763146239843,500.0,0.00023413,2]
[393971174,1763146239878,500.0,0.00023413,2]
[393971175,1763146239911,500.0,0.00023413,2]
[393971176,1763146239949,2720.08931196,0.00023413,2]
[393971177,1763146239989,500.0,0.00023413,2]
[393971178,1763146240035,500.0,0.00023413,2]
[393971179,1763146240068,500.0,0.00023413,2]
[393971180,1763146240102,500.0,0.00023413,2]
[393971182,1763146240137,2720.08931196,0.00023413,2]
[393971183,1763146240170,500.0,0.00023413,2]
[393971184,1763146240202,500.0,0.00023413,2]
[393971185,1763146240236,500.0,0.00023413,2]
[393971186,1763146240268,500.0,0.00023413,2]
[393971187,1763146240302,500.0,0.00023413,2]
[393971188,1763146240335,500.0,0.00023413,2]
[393971189,1763146240370,2720.08931196,0.00023413,2]
[393971190,1763146240403,500.0,0.00023413,2]
[393971192,1763146240436,500.0,0.00023413,2]
[393971193,1763146240469,500.0,0.00023413,2]
[393971194,1763146240504,2720.08931196,0.00023413,2]
[393971195,1763146240541,21.89652105,0.00023413,2]
[393971200,1763146243218,160.197305,0.00030137,120]
[393971205,1763146244085,-478.10347895,0.00023413,2]
[393971206,1763146244095,-500.0,0.00023413,2]
[393971207,1763146244104,-500.0,0.00023413,2]
[393971208,1763146244113,-500.0,0.00023413,2]
[393971209,1763146244122,-500.0,0.00023413,2]
[393971210,1763146244131,-442.34862187,0.00023413,2]
[393971211,1763146244142,-57.65137813,0.00023413,2]
[393971212,1763146244151,-500.0,0.00023413,2]
[393971213,1763146244160,-500.0,0.00023413,2]
[393971214,1763146244169,-500.0,0.00023413,2]
[393971215,1763146244178,-2720.08931196,0.00023413,2]
[393971216,1763146244191,-554.34701962,0.00023413,2]
[393971217,1763146244200,-500.0,0.00023413,2]
[393971218,1763146244210,-500.0,0.00023413,2]
[393971219,1763146244219,-500.0,0.00023413,2]
[393971220,1763146244228,-21.41229027,0.00023413,2]
[393971221,1763146245088,-478.58770973,0.00023413,2]
[393971222,1763146245097,-21.41229027,0.00023413,2]
[393971223,1763146245143,-379.14205311,0.00023413,2]
[393971224,1763146246715,-356.32752106,0.00023413,2]
[393971225,1763146246727,-1963.20744752,0.00023413,2]
[393971226,1763146246737,-500.0,0.00023413,2]
[393971227,1763146246747,-500.0,0.00023413,2]
[393971228,1763146246757,-500.0,0.00023413,2]
[393971229,1763146246768,-500.0,0.00023413,2]
[393971230,1763146246778,-500.0,0.00023413,2]
[393971231,1763146246787,-500.0,0.00023413,2]
[393971232,1763146246797,-2720.08931196,0.00023413,2]
[393971233,1763146246807,-500.0,0.00023413,2]
[393971234,1763146246816,-500.0,0.00023413,2]
[393971235,1763146246825,-500.0,0.00023413,2]
[393971236,1763146246835,-500.0,0.00023413,2]
[393971237,1763146246844,-500.0,0.00023413,2]
[393971238,1763146246853,-500.0,0.00023413,2]
[393971239,1763146246863,-2720.08931196,0.00023413,2]
[393971240,1763146246872,-500.0,0.00023413,2]
[393971241,1763146246882,-500.0,0.00023413,2]
[393971242,1763146246891,-500.0,0.00023413,2]
[393971243,1763146246904,-500.0,0.00023413,2]
[393971244,1763146246913,-500.0,0.00023413,2]
[393971245,1763146246923,-2720.08931196,0.00023413,2]
[393971246,1763146246932,-500.0,0.00023413,2]
[393971247,1763146246943,-500.0,0.00023413,2]
[393971248,1763146246952,-500.0,0.00023413,2]
[393971249,1763146246961,-500.0,0.00023413,2]
[393971250,1763146246971,-500.0,0.00023413,2]
[393971251,1763146246980,-500.0,0.00023413,2]
[393971252,1763146246989,-2720.08931196,0.00023413,2]
[393971253,1763146246998,-500.0,0.00023413,2]
[393971254,1763146247007,-500.0,0.00023413,2]
[393971255,1763146247018,-500.0,0.00023413,2]
[393971256,1763146247027,-500.0,0.00023413,2]
[393971257,1763146247036,-500.0,0.00023413,2]
[393971258,1763146247045,-2720.08931196,0.00023413,2]
[393971259,1763146247054,-500.0,0.00023413,2]
[393971260,1763146247063,-500.0,0.00023413,2]
[393971261,1763146247072,-500.0,0.00023413,2]
[393971262,1763146247081,-500.0,0.00023413,2]
[393971263,1763146247090,-500.0,0.00023413,2]